[Event "French-ch Youth U18 2022"]
[Site "Agen"]
[Date "2022.04.19"]
[Round "4.6"]
[White "Lordier, Sophia"]
[Black "Moracchini, Margaux"]
[Result "1/2-1/2"]
[ECO "E92"]
[WhiteElo "1725"]
[BlackElo "1994"]
[Annotator "TA"]
[PlyCount "67"]
[EventDate "2022.04.17"]
[EventType "swiss"]
[EventCountry "FRA"]
[SourceTitle "playchess.com"]
[Source "ChessBase"]
[SourceQuality "1"]
[TimeControl "5400+30"]

{[%evp 19,67,8,5,-30,-24,-63,-73,-74,-52,-87,-75,-96,-84,-87,-92,-129,-124,-118,-68,-92,-62,-81,-77,-87,-65,-67,-50,-54,-52,-45,-32,-28,-22,-22,-23,-27,0,-12,0,0,0,0,0,0,0,0,0,0,0,0]} 1. d4 {[%emt 0:02:49]} Nf6 {[%emt 0:00:22]} 2. c4 {[%emt 0:00:05]} g6 {[%emt 0:00:08]} 3. Nc3 {[%emt 0:00:05]} Bg7 {[%emt 0:00:08]} 4. e4 {[%emt 0:00:18]} d6 {[%emt 0:00:18]} 5. Nf3 {[%emt 0:00:09]} O-O {[%emt 0:00:34]} 6. Be2 {[%emt 0:00:10]} e5 {[%emt 0:01:16]} 7. dxe5 {[%emt 0:00:21]} dxe5 {[%emt 0:00:09]} 8. Qxd8 {[%emt 0:00:05]} Rxd8 {[%emt 0:00:08]} 9. Bg5 {[%emt 0:00:03]} Re8 {[%emt 0:00:46]} 10. O-O-O {[%emt 0:00:13]} h6 {[%emt 0:09:37]} 11. Bxf6 {[%emt 0:09:46] E92: King's Indian: Classical: 6 Be2 e5: 7 dxe5, 7 Be3 and Petrosian System without 7...Nbd7.} Bxf6 {[%emt 0:00:03][%cal Bg7f6,Bf6d8,Bd8e7][%mdl 32]} 12. Nd5 {[%emt 0:00:05][%csl LRc7,LRf6]} Bd8 {[%emt 0:00:30]} 13. Ne1 {[%emt 0:09:58] Black is better.} c6 {[%emt 0:06:39]} 14. Nc3 {[%emt 0:00:28]} Be6 {[%emt 0:09:25] [#]} 15. Nc2 $146 {[%emt 0:05:56]} ({Predecessor:} 15. b3 Nd7 16. Nd3 Kg7 17. Kc2 Bb6 18. Rhf1 Rad8 19. f4 exf4 20. Nxf4 Nf8 21. Rxd8 Bxd8 {0-1 (29) Cagara,P (2121)-Socko,M (2428) Dzwirzyno 2004}) 15... a5 {[%emt 0:10:57]} 16. b3 {[%emt 0:01:48]} Na6 {[%emt 0:02:01]} 17. a3 {[%emt 0:04:26]} Be7 {[%emt 0:02:51]} 18. Kb2 {[%emt 0:01:01]} Red8 {[%emt 0:06:41]} (18... Nc5 $17 {[%cal Ob7b5]} 19. f3 f5) 19. f3 {[%emt 0:03:35]} Kf8 {[%emt 0:05:19][%cal Bg8f8,Bf8e8,Be8d8,Bd8c7][%mdl 32]} 20. Na4 {[%emt 0:04:27]} Ke8 {[%emt 0:01:43]} 21. Nb6 {[%emt 0:03:16]} Rxd1 {[%emt 0:02:00]} 22. Rxd1 {[%emt 0:00:03]} Rd8 {[%emt 0:00:18]} 23. Rxd8+ {[%emt 0:05:59]} Kxd8 {[%emt 0:00:25]} 24. Kc3 {[%emt 0:00:34]} Kc7 {[%emt 0:06:28]} 25. Na4 {[%emt 0:01:28]} f5 {[%emt 0:04:43]} 26. b4 {[%emt 0:05:00]} axb4+ {[%emt 0:01:25]} (26... b6 {seems wilder.} 27. c5 b5 28. Nb2 Bf6) 27. axb4 {[%emt 0:00:25]} Nb8 {[%emt 0:01:33]} 28. Bd3 {[%emt 0:09:12] The position is equal.} f4 {[%emt 0:01:27]} 29. c5 {[%emt 0:01:23]} ({Of course not} 29. Nc5 Bxc5 30. bxc5 Na6 $17) 29... Nd7 {[%emt 0:02:18]} 30. Bc4 {[%emt 0:04:40]} Bxc4 {[%emt 0:07:32]} 31. Kxc4 {[%emt 0:00:20]} b5+ {[%emt 0:01:10]} 32. cxb6+ $1 {[%emt 0:00:06]} Nxb6+ {[%emt 0:00:15]} 33. Nxb6 {[%emt 0:00:09]} Kxb6 {[%emt 0:00:04]} 34. Ne1 {Weighted Error Value: White=0.13 (very precise) /Black=0.11 (very precise)} 1/2-1/2

[Event "French-ch Youth U18 2022"]
[Site "Agen"]
[Date "2022.04.19"]
[Round "4.7"]
[White "Courjal, Pauline"]
[Black "Randrianarimanana, Alicia"]
[Result "1-0"]
[ECO "B76"]
[WhiteElo "1976"]
[BlackElo "1985"]
[Annotator "TA"]
[PlyCount "57"]
[EventDate "2022.04.17"]
[EventType "swiss"]
[EventCountry "FRA"]
[SourceTitle "playchess.com"]
[Source "ChessBase"]
[SourceQuality "1"]
[TimeControl "5400+30"]

{[%evp 23,57,30,36,-14,86,89,76,35,33,52,79,83,222,23,10,-22,0,0,0,0,0,0,0,0,269,264,270,267,251,230,29996,74,29997,29998,29998,29999]} 1. e4 {[%emt 0:00:03]} c5 {[%emt 0:00:03]} 2. Nf3 {[%emt 0:00:09]} Nc6 {[%emt 0:00:12]} 3. d4 {[%emt 0:14:05]} cxd4 {[%emt 0:00:06]} 4. Nxd4 {[%emt 0:00:05]} Nf6 {[%emt 0:05:29]} 5. Nc3 {[%emt 0:01:03]} g6 {[%emt 0:03:17]} 6. Be3 {[%emt 0:07:41]} d6 {[%emt 0:00:52]} 7. f3 {[%emt 0:00:07]} Bg7 {[%emt 0:00:03]} 8. Qd2 {[%emt 0:00:05]} O-O {[%emt 0:00:05]} 9. O-O-O {[%emt 0:00:11]} d5 {[%emt 0:01:04]} 10. Qe1 {[%emt 0:00:30]} e5 {[%emt 0:00:37]} 11. Nxc6 {[%emt 0:00:07]} bxc6 {[%emt 0:00:02]} 12. exd5 {[%emt 0:00:11]} Nxd5 {[%emt 0:00:06]} 13. Bb5 {[%emt 0:00:21] B76: Sicilian Dragon: Yugoslav Attack, 9 g4 and 9 0-0-0.} Bd7 {[%emt 0:15:00]} (13... Qc7 $1 $11 14. Nxd5 cxd5) 14. Nxd5 $16 {[%emt 0:00:11] And now Ba4 would win.} cxb5 {[%emt 0:00:10]} 15. h4 {[%emt 0:07:03] [#] aiming for h5. &Bianco is much more active. The black rooks are badly placed. White is better.} Rc8 $146 {[%emt 0:04:39]} ({Predecessor:} 15... h6 16. Kb1 Re8 17. Bc5 Kh8 18. Qe3 Rc8 19. g4 Be6 20. Nb6 Qc7 21. Nxc8 Rxc8 {1-0 (32) Shi,D (2214)-Zhu,H (2318) Windsor 2015}) 16. h5 {[%emt 0:05:32]} Bf5 {[%emt 0:03:31]} 17. c3 {[%emt 0:06:14]} b4 {[%emt 0:27:16] [#]} (17... Rc4 $16 {was necessary.}) 18. g4 $2 {[%emt 0:14:00]} ({Not} 18. Nxb4 Qa5 19. a3 gxh5 $14) (18. Qh4 $1 $18 Re8 19. h6 (19. Qxb4 Rb8 $16) (19. Nxb4 Qa5 $14) 19... Qxh4 20. Rxh4) 18... Be6 $11 {[%emt 0:00:51] This bishop pair is nice.} 19. Nb6 {[%emt 0:01:11]} Qc7 {[%emt 0:01:07]} 20. Nxc8 {[%emt 0:00:24]} Rxc8 {[%emt 0:00:01]} 21. hxg6 {[%emt 0:15:46]} bxc3 {[%emt 0:02:32]} 22. gxh7+ {[%emt 0:11:32]} Kh8 {[%emt 0:00:04] ( -> ...cxb2+)} 23. b4 {[%emt 0:06:51] Black must now prevent Bh6.} Qc4 $2 {[%emt 0:02:47][%mdl 8192] [#]} (23... Bf6 $11 {and Black is okay.} 24. Bc5 Qc6) 24. Qh4 $1 $18 {[%emt 0:01:19]} (24. Bh6 Bf6 25. Kc2 Qxa2+ 26. Kd3 c2 $19) 24... Qxb4 {[%emt 0:06:28][%csl Gc3][%cal Rb4b2]} 25. Rd8+ {[%emt 0:00:07]} Rxd8 {[%emt 0:00:03]} 26. Qxd8+ {[%emt 0:00:05]} Bf8 $2 {[%emt 0:00:47]} (26... Qf8 $18 27. Qxf8+ Bxf8) 27. Qf6+ {[%emt 0:00:10]} Bg7 {[%emt 0:00:01] [#]} 28. Qxg7+ $1 {[%emt 0:00:24][%mdl 512]} Kxg7 {[%emt 0:00:04]} 29. h8=Q+ {[%emt 0:00:06] Weighted Error Value: White=0.24 (precise) /Black=1.06} 1-0

[Event "French-ch Youth U18 2022"]
[Site "Agen"]
[Date "2022.04.19"]
[Round "4.8"]
[White "Tomasi, Elise"]
[Black "Bacconnais, Anthea"]
[Result "1-0"]
[ECO "D02"]
[WhiteElo "1988"]
[BlackElo "1362"]
[Annotator "TA"]
[PlyCount "111"]
[EventDate "2022.04.17"]
[EventType "swiss"]
[EventCountry "FRA"]
[SourceTitle "playchess.com"]
[Source "ChessBase"]
[SourceQuality "1"]
[TimeControl "5400+30"]

{[%evp 9,110,39,55,46,65,62,56,56,65,33,60,60,133,125,177,88,145,154,161,170,157,143,146,142,151,145,154,135,164,139,137,67,67,67,67,69,117,67,60,68,74,52,67,67,66,42,54,49,42,35,40,38,36,0,0,0,48,48,48,39,42,43,54,33,36,27,89,0,29,14,72,20,28,28,220,18,198,49,289,283,481,465,1429,1442,1838,1855,1219,1057,29987,29988,29988,29989,29989,29990,29990,29991,29992,29993,29994,29995,29998,29999,29999]} 1. d4 {[%emt 0:00:10]} d5 {[%emt 0:00:12]} 2. Nf3 {[%emt 0:00:19]} Nf6 {[%emt 0:01:10]} 3. g3 {[%emt 0:00:03]} e6 {[%emt 0:01:32]} 4. Bg2 {[%emt 0:00:05]} a6 {[%emt 0:02:07]} 5. O-O {[%emt 0:01:49]} Nc6 {[%emt 0:02:39] [#]} 6. c3 $146 {[%emt 0:06:31] D02: 1 d4 d5 2 Nf3 sidelines, including 2...Nf6 3 g3 and 2...Nf6 3 Bf4.} ({Predecessor:} 6. b3 Be7 7. Bb2 O-O 8. Nbd2 b6 9. c4 Bb7 10. Rc1 Ne4 11. Ne1 Nxd2 12. Qxd2 {1-0 (30) Kushko,D (2358)-Biriukov,N (2364) Kharkov 2021}) 6... Bd7 {[%emt 0:01:49]} 7. Qc2 {[%emt 0:01:27]} Bd6 {[%emt 0:04:21]} 8. Nbd2 {White is slightly better.} O-O {[%emt 0:10:10]} 9. c4 {[%emt 0:27:14]} dxc4 {[%emt 0:05:01]} 10. Nxc4 {[%emt 0:02:50]} Rb8 {[%emt 0:02:56]} (10... b5 $14 11. Nce5 Nxd4 12. Nxd4 Bxe5 13. Bxa8 Qxa8) 11. e4 $1 $16 {[%emt 0:10:01] aiming for e5. &Bianco is more active.} b5 {[%emt 0:07:58]} (11... Ne8 $16) 12. Ncd2 {[%emt 0:07:38]} (12. Nce5 $1 $18 {[%cal Re5c6] has better winning chances.} Ne7 13. Bd2) 12... e5 {[%emt 0:03:50]} (12... Nb4 $142 13. Qb1 Be7) 13. dxe5 $1 {[%emt 0:02:15]} Nxe5 {[%emt 0:00:30]} 14. Nxe5 {[%emt 0:00:27]} Bxe5 {[%emt 0:00:18]} 15. Nf3 {[%emt 0:00:34]} Qe7 {[%emt 0:05:22]} 16. Nxe5 {[%emt 0:00:57]} Qxe5 {[%emt 0:00:26]} 17. Bf4 {[%emt 0:01:07]} Qh5 {[%emt 0:05:35]} 18. Qxc7 {[%emt 0:07:13]} Bh3 {[%emt 0:02:29]} 19. Qe5 {[%emt 0:02:05] Black must now prevent Qxh5.} Bxg2 {[%emt 0:10:12]} 20. Qxh5 {[%emt 0:00:43]} (20. Kxg2 $16 {And now Qxh5 would win.} Qe2 21. Rae1) 20... Nxh5 $14 {[%emt 0:00:34]} 21. Kxg2 {[%emt 0:00:05]} Nxf4+ {[%emt 0:04:15]} 22. gxf4 $16 {[%emt 0:00:01][%mdl 4096] Endgame KRR-KRR} Rb6 {[%emt 0:01:02]} (22... Rfc8 $14 {might be stronger.}) 23. f5 {[%emt 0:02:43]} ({White should try} 23. Rfd1 $16) 23... g6 $14 {[%emt 0:03:23]} 24. fxg6 {[%emt 0:00:52]} hxg6 {[%emt 0:00:27]} 25. f4 {[%emt 0:02:02]} Re6 {[%emt 0:02:17]} 26. Kf3 {[%emt 0:01:02]} Kg7 {[%emt 0:01:50]} 27. Rac1 {[%emt 0:01:36]} Rh8 {[%emt 0:01:44]} 28. Rc2 {[%emt 0:06:03]} Rh3+ {[%emt 0:00:39]} 29. Kg2 {[%emt 0:00:43]} Re3 {[%emt 0:02:16]} 30. e5 {[%emt 0:00:12]} g5 {[%emt 0:05:23]} 31. Rcf2 {[%emt 0:08:07]} (31. Rc7 $5 {[%cal Rf4g5]}) 31... gxf4 {[%emt 0:02:36]} 32. Rxf4 R3xe5 {[%emt 0:00:51]} (32... Re2+ $11 33. Kg3 Rg6+ 34. Kh3 Rh6+ 35. Kg3 Rg6+ 36. Kh3 Rh6+ 37. Kg3 Rg6+) 33. Rxf7+ {[%emt 0:00:12]} Kg6 {[%emt 0:00:20]} 34. R7f3 {[%emt 0:01:35]} a5 {[%emt 0:02:32]} 35. R1f2 {[%emt 0:02:01]} b4 {[%emt 0:01:34][%cal Bb5b4,Bb4b3][%mdl 32]} 36. Rg3+ {[%emt 0:00:36]} Rg5 {[%emt 0:00:23]} 37. Rc2 {[%emt 0:02:03]} Ree5 {[%emt 0:01:10]} (37... Rxg3+ $11 38. hxg3 (38. Kxg3 b3 $11) 38... Re3) 38. a3 {[%emt 0:01:54]} ({Better is} 38. b3 $16) 38... b3 {[%emt 0:01:07]} 39. Rc6+ {[%emt 0:02:05]} Kf5 {[%emt 0:01:41]} (39... Kf7 $11) 40. Rxg5+ {[%emt 0:00:08]} (40. Kf2 $16) 40... Kxg5 $16 {[%emt 0:00:12] KR-KR} 41. Kf3 {[%emt 0:00:01] Strongly threatening Rb6.} Kf5 $2 {[%emt 0:02:10] [#] White stays focused until the end.} (41... Re1 $1 $11) 42. h4 $2 {[%emt 0:01:43]} ({White must play} 42. Rc3 $1 $18) 42... Rd5 $2 {[%emt 0:01:37] [#]} (42... Re1 $1 $11 {and Black stays safe.}) 43. Ke3 {[%emt 0:00:41]} (43. Ke2 $1 $18) 43... Kg4 $2 {[%emt 0:02:11]} (43... Rd1 $1 $14) 44. Rb6 {[%emt 0:00:14]} a4 $2 {[%emt 0:00:56]} (44... Kxh4 45. Rxb3 Kg4) 45. Rb4+ $18 {[%emt 0:00:01]} Kg3 {[%emt 0:00:28]} (45... Kf5 $142 46. Rxa4 Rd1) 46. Rxa4 {[%emt 0:00:05]} Re5+ {[%emt 0:00:25]} 47. Kd3 {[%emt 0:00:04]} Rf5 {[%emt 0:00:38]} 48. Rb4 {[%emt 0:00:18]} Rf4 {[%emt 0:00:38]} 49. Rxf4 {[%emt 0:00:17] White mates.} Kxf4 {[%emt 0:00:03] KP-KP} 50. a4 {[%emt 0:00:16]} Kg4 {[%emt 0:00:19]} 51. a5 {[%emt 0:00:01]} Kxh4 {[%emt 0:00:11]} 52. a6 {[%emt 0:00:04]} Kg3 {[%emt 0:00:10]} 53. a7 {[%emt 0:00:05]} Kf2 {[%emt 0:00:08]} 54. a8=Q {[%emt 0:00:06]} Ke1 {[%emt 0:00:04]} 55. Qg2 {[%emt 0:00:17][%cal Rg2g1]} Kd1 {[%emt 0:00:14]} 56. Qg1# {[%emt 0:00:03] Weighted Error Value: White=0.24 (precise) /Black=0.54} 1-0

[Event "French-ch Youth U18 2022"]
[Site "Agen"]
[Date "2022.04.20"]
[Round "5.1"]
[White "Girel, Joseph"]
[Black "Mas, Victor"]
[Result "1-0"]
[ECO "E17"]
[WhiteElo "2394"]
[BlackElo "2190"]
[Annotator "TA"]
[PlyCount "51"]
[EventDate "2022.04.17"]
[EventType "swiss"]
[EventCountry "FRA"]
[SourceTitle "playchess.com"]
[Source "ChessBase"]
[SourceQuality "1"]
[TimeControl "5400+30"]

{[%evp 11,51,20,6,0,29,29,23,22,25,20,36,10,36,50,37,49,48,25,37,16,61,28,21,23,32,16,45,50,52,39,29,42,114,29,140,140,140,140,315,343,1422,1379]} 1. d4 {[%emt 0:00:17]} Nf6 {[%emt 0:01:13]} 2. c4 {[%emt 0:00:31]} e6 {[%emt 0:00:06]} 3. Nf3 {[%emt 0:00:18]} b6 {[%emt 0:00:21]} 4. g3 {[%emt 0:00:57]} Bb7 {[%emt 0:00:17]} 5. Bg2 {[%emt 0:00:29]} Be7 {[%emt 0:00:08]} 6. O-O {[%emt 0:00:28]} O-O {[%emt 0:00:04]} 7. h4 {[%emt 0:00:05] E17: Queen's Indian: 4 g3 Bb7 5 Bg2 Be7.} d5 {[%emt 0:15:17]} 8. cxd5 {[%emt 0:00:14]} exd5 {[%emt 0:02:23]} 9. Nc3 {[%emt 0:00:18] [#] White has an edge.} c5 $146 {[%emt 0:05:47]} ({Predecessor:} 9... Nbd7 10. Ne5 c5 11. Qa4 cxd4 12. Nxd7 Qxd7 13. Qxd7 Nxd7 14. Nxd5 Bxd5 15. Bxd5 Rac8 {½-½ (41) Sakaev,K (2612)-Shubin,K (2441) Sochi 2020}) 10. Bf4 {[%emt 0:00:25]} Nc6 {[%emt 0:05:21]} 11. e3 {[%emt 0:04:55]} Ne4 {[%emt 0:14:45]} 12. dxc5 {[%emt 0:13:33]} Nxc3 {[%emt 0:00:35]} 13. bxc3 {[%emt 0:00:03]} Bxc5 {[%emt 0:02:01]} 14. Qd3 {[%emt 0:02:21]} h6 {Inhibits Ng5.} 15. Nd4 {[%emt 0:13:17]} Re8 {[%emt 0:16:33]} 16. Qf5 {[%emt 0:11:17]} (16. Nb3 $5 {[%cal Rb3c5]}) 16... Ne7 {[%emt 0:04:24]} 17. Qg4 {[%emt 0:02:21]} Ng6 {[%emt 0:01:58]} 18. Rfd1 {[%emt 0:02:56][%cal Oc3c4]} Nxf4 {[%emt 0:06:39]} 19. Qxf4 $40 {[%emt 0:00:13][%cal Oc3c4][%mdl 128] White mounts an attack.} Bd6 {[%emt 0:00:26]} 20. Qg4 {[%emt 0:02:07][%cal Oc3c4]} Be5 {[%emt 0:01:54]} 21. c4 {[%emt 0:03:07]} Rc8 {[%emt 0:01:40]} ({Black should play} 21... Qf6 $1 $14) 22. cxd5 {[%emt 0:04:11] &Bianco is more active.} ({Better is} 22. Rac1 $16) 22... Bxd5 {[%emt 0:00:58] [#]} (22... Rc4 $11) 23. Nf5 $1 $16 {[%emt 0:17:26][%csl LRd5,LRh6]} h5 24. Qxh5 Bxa1 $2 {[%emt 0:11:22]} (24... g6 $16 {keeps fighting.} 25. Qg4 Qf6 26. Bxd5 Qxf5 27. Qxf5 gxf5) 25. Bxd5 $18 {[%emt 0:00:59] Chess con chili.} Re6 $2 {[%emt 0:03:32]} (25... Qf6 26. Nd6 g6 27. Bxf7+ (27. Nxe8 Rxe8 28. Qh6 Rd8 $18) 27... Qxf7) 26. Bxe6 {[%emt 0:00:29][%mdl 64] Discovered Attack.  Weighted Error Value: White=0.16 (very precise) /Black=0.34} 1-0

[Event "French-ch Youth U18 2022"]
[Site "Agen"]
[Date "2022.04.20"]
[Round "5.2"]
[White "Fardet, Elouan"]
[Black "Harutyunyan, Safar"]
[Result "0-1"]
[ECO "B90"]
[WhiteElo "2162"]
[BlackElo "2217"]
[Annotator "TA"]
[PlyCount "52"]
[EventDate "2022.04.17"]
[EventType "swiss"]
[EventCountry "FRA"]
[SourceTitle "playchess.com"]
[Source "ChessBase"]
[SourceQuality "1"]
[TimeControl "5400+30"]

{[%evp 15,52,3,14,10,8,10,29,0,0,0,0,0,0,0,0,-50,28,22,24,18,30,0,0,-188,-179,-177,-179,-189,-138,-195,-166,-247,-249,-250,-215,-651,-637,-622,-603]} 1. e4 {[%emt 0:00:03]} c5 {[%emt 0:01:16]} 2. Nf3 {[%emt 0:00:05]} d6 {[%emt 0:00:03]} 3. d4 {[%emt 0:00:04]} cxd4 {[%emt 0:00:04]} 4. Nxd4 {[%emt 0:00:04]} Nf6 {[%emt 0:00:06]} 5. Nc3 {[%emt 0:00:04]} a6 6. Be3 {[%emt 0:00:28]} e5 {[%emt 0:00:23]} 7. Nb3 {[%emt 0:00:05]} Be6 {[%emt 0:00:06]} 8. Qd2 {[%emt 0:00:59]} Be7 {[%emt 0:02:22]} 9. O-O-O {[%emt 0:00:49] B90: Sicilian Najdorf: Unusual White 6th moves, 6 Be3 Ng4 and 6 Be3 e5.} Ng4 {[%emt 0:01:57]} 10. Kb1 {[%emt 0:02:10]} O-O {[%emt 0:04:15]} 11. f4 {[%emt 0:12:07] White has an edge.} Nxe3 {[%emt 0:00:26]} 12. Qxe3 {[%emt 0:00:00]} exf4 {[%emt 0:00:49]} 13. Qxf4 {[%emt 0:05:00]} Nc6 {[%emt 0:13:12]} 14. Be2 {[%emt 0:21:58] [#]} Rc8 $146 {[%emt 0:21:46]} ({Predecessor:} 14... Ne5 15. Nd4 Rc8 16. Nd5 Bxd5 17. exd5 Qb6 18. Rhf1 Rfe8 19. g4 Bf8 20. h4 g6 {½-½ (49) Shetty,R (2192)-Praneeth,S (2347) Nagpur 2015}) 15. Bg4 {[%emt 0:00:08]} (15. Nd5 $11) 15... Bxg4 {[%emt 0:05:11]} ({Black should play} 15... Ne5 $15 16. Be2 Bg5) 16. Qxg4 $11 {[%emt 0:06:07]} Bf6 {[%emt 0:00:14] Hoping for ...Bxc3.} 17. Nd5 Be5 18. Nd2 {[%emt 0:06:35]} Ne7 {[%emt 0:10:09]} 19. Ne3 $2 {[%emt 0:09:19] [#]} (19. Nb3 $11 {and White stays safe.}) 19... Bxb2 $1 $19 {[%emt 0:03:19][%mdl 512] Threatens to win with ...Bd4.} 20. Ndc4 {[%emt 0:02:03]} (20. Kxb2 Qb6+) 20... Be5 {[%emt 0:01:57]} 21. Rd3 {[%emt 0:06:10]} Qe8 {[%emt 0:15:37]} (21... Ng6 $19 {aiming for ...b5.} 22. Rhd1 Re8) 22. Nb6 {[%emt 0:07:30]} (22. Rb3 $17) 22... Rc7 {[%emt 0:00:36]} 23. Nbd5 {[%emt 0:00:04] Inhibits Bc3.} (23. Rb3 $142) 23... Nxd5 {[%emt 0:03:59]} 24. Nxd5 {[%emt 0:02:32]} Rc4 {[%emt 0:04:07] Strongly threatening ...Qb5+.} 25. Qh4 $2 (25. Qf3) 25... Qb5+ {[%emt 0:00:02]} (25... Qa4 $2 {gets mated.} 26. Ne7+ Kh8 {[#]} 27. Qxh7+ $3 {[%mdl 512]} Kxh7 28. Rh3#) 26. Rb3 {[%emt 0:00:55] [#]} Qxd5 $1 {[%mdl 512] Weighted Error Value: White=0.71/Black=0.13 (very precise)} 0-1

[Event "French-ch Youth U18 2022"]
[Site "Agen"]
[Date "2022.04.20"]
[Round "5.3"]
[White "Lambach, Maxime"]
[Black "Decuigniere, Tom"]
[Result "0-1"]
[ECO "B13"]
[WhiteElo "2016"]
[BlackElo "2292"]
[Annotator "TA"]
[PlyCount "86"]
[EventDate "2022.04.17"]
[EventType "swiss"]
[EventCountry "FRA"]
[SourceTitle "playchess.com"]
[Source "ChessBase"]
[SourceQuality "1"]
[TimeControl "5400+30"]

{[%evp 9,86,1,5,0,12,-21,-13,-27,-11,-35,-35,-43,-41,-36,-33,-52,-31,-50,-53,-47,-20,-25,-18,-32,0,-10,0,-18,-15,-29,-16,-45,-45,-72,-66,-69,-46,-46,-46,-63,-37,-59,-59,-139,0,0,0,0,0,-140,-154,-152,-118,-153,-118,-138,-133,-125,-97,-275,-250,-207,-221,-271,-172,-732,-691,-640,-286,-503,-480,-829,-274,-444,-259,-600,-565,-498,-419]} 1. e4 {[%emt 0:00:15]} c6 {[%emt 0:00:27]} 2. d4 {[%emt 0:00:27]} d5 {[%emt 0:00:05]} 3. exd5 {[%emt 0:00:44]} cxd5 {[%emt 0:00:05]} 4. c3 {[%emt 0:01:45]} Nc6 {[%emt 0:00:12]} 5. Bf4 {[%emt 0:00:49]} Bf5 {[%emt 0:00:15]} 6. Nd2 {[%emt 0:01:04] B13: Caro-Kann: Exchange Variation and Panov-Botvinnik Attack.} f6 {[%emt 0:01:06]} 7. Ngf3 {[%emt 0:01:37] Prevents e5.} g5 {[%emt 0:02:36]} 8. Be3 {[%emt 0:00:13] The position is equal.} e6 {[%emt 0:00:30]} 9. Bb5 {[%emt 0:07:26]} Bd6 {[%emt 0:05:17] [#]} 10. Qe2 $146 {[%emt 0:03:12]} ({Predecessor:} 10. c4 Nge7 11. Qb3 a6 12. cxd5 axb5 13. dxc6 bxc6 14. h3 h5 15. Rc1 Qd7 16. Ke2 {0-1 (45) Pajeken,J (2337)-Beerdsen,T (2476) Hamburg 2018}) 10... Nge7 {[%emt 0:01:54]} 11. h3 {[%emt 0:06:13]} h5 {[%emt 0:06:55] Inhibits g4.} 12. Bd3 {[%emt 0:05:27]} Kf7 {[%emt 0:03:43]} 13. Nb3 {[%emt 0:05:48]} Bxd3 {[%emt 0:03:06]} 14. Qxd3 {[%emt 0:00:06][%cal Oe3g5]} Ng6 {[%emt 0:00:20]} 15. O-O-O {[%emt 0:07:33]} b6 {[%emt 0:11:58]} 16. Kb1 {[%emt 0:01:36]} a5 {[%emt 0:02:54]} 17. Nc1 {[%emt 0:02:35]} a4 {[%emt 0:08:57]} 18. a3 {[%emt 0:09:05]} Na5 {[%emt 0:02:23]} 19. Nd2 {[%emt 0:00:37] Inhibits Nc4.} b5 {[%emt 0:03:27]} 20. Rhe1 {[%emt 0:12:19]} (20. Qxb5 $2 Bxa3 21. Kc2 (21. bxa3 $2 Rb8 $19) 21... Rb8 $1 22. Qxa4 Rxb2+ 23. Kd3 Nc4 $19) 20... Nc4 {[%emt 0:03:13]} 21. Na2 {[%emt 0:01:31]} Nh4 {[%emt 0:07:10]} 22. g3 {[%emt 0:09:50]} Nf5 {[%emt 0:00:16]} (22... Ng2 $5 {[%cal Rg2e1]} 23. Rg1 Ngxe3 24. fxe3 Qg8 $15) 23. g4 {[%emt 0:00:25]} Nh4 {[%emt 0:04:22]} 24. Qe2 {[%emt 0:05:14]} Qd7 {[%emt 0:02:05]} 25. Nc1 {[%emt 0:01:43]} Ng2 {[%emt 0:07:37]} 26. Rg1 {[%emt 0:00:50]} (26. Rh1 $15) 26... Nf4 {[%emt 0:00:05] 0x0.00018dd8005ddp-1022s more active pieces.} ({Black should play} 26... Ngxe3 $17 27. fxe3 hxg4 28. Rxg4 Rxh3 29. Nxc4 bxc4 30. Rxg5 fxg5 31. Qf1+ Kg8 32. Qxh3 Qh7+ 33. Qxh7+ Kxh7) 27. Bxf4 $11 {[%emt 0:00:12]} Bxf4 {[%emt 0:00:03]} 28. Nxc4 {[%emt 0:00:27]} bxc4 {[%emt 0:00:04]} 29. h4 (29. gxh5 $11 Qd6 30. h4) 29... hxg4 $17 ({Much worse is} 29... gxh4 $6 30. gxh5 Qd6 31. Rg4 $11 (31. Qg4 Bg5 $15)) 30. hxg5 {[%emt 0:01:08][%cal Og5g6]} f5 {[%emt 0:01:39]} ({Inferior is} 30... Bxg5 31. Rxg4 Rh2 32. Ka1 $11) 31. Rh1 {[%emt 0:02:46]} Qe7 {[%emt 0:00:35]} 32. Rde1 {[%emt 0:02:17]} Bxg5 {[%emt 0:04:42]} 33. Na2 {[%emt 0:00:42]} Qf6 {[%emt 0:00:46] And now ...Rxh1 would win.} 34. Rxh8 {[%emt 0:01:35] Loses the game.} (34. Rhg1 $17 {is a better defense.}) 34... Rxh8 $19 {[%emt 0:00:05]} 35. Nb4 {[%emt 0:00:08] [#]} Rh2 $1 {[%emt 0:06:52] Strongly threatening ...Bh4.} 36. Nc6 {[%emt 0:03:11]} Kg7 {[%emt 0:01:18] aiming for ...Bh4.} 37. Qf1 $2 {[%emt 0:02:17]} (37. Rf1) 37... Bf4 {[%emt 0:01:03]} 38. Ka2 {[%emt 0:01:15]} Bd6 {[%emt 0:03:03]} (38... Qh4 $142 39. f3 Rf2) 39. Re2 {[%emt 0:00:52]} (39. Qg1) 39... f4 {[%emt 0:00:25][%cal Bf5f4,Bf4f3][%mdl 32] White must now prevent ...g3.} 40. Qe1 {[%emt 0:00:20]} (40. f3 $142 Rxe2 41. Qxe2) 40... Rh6 $2 {[%emt 0:00:47]} (40... g3 41. fxg3 Rxe2 42. Qxe2 fxg3) 41. Qg1 $2 {[%emt 0:02:09]} (41. Ne5 Bxe5 42. Rxe5) 41... Rg6 {[%emt 0:00:22]} (41... f3 $142 42. Rd2 (42. Qxg4+ $2 Rg6 $19) 42... Qg5) 42. Qh1 $2 {[%emt 0:02:16]} (42. Ne5 f3 43. Re1 Bxe5 44. dxe5) 42... f3 {[%emt 0:01:42]} 43. Re3 {[%emt 0:00:40]} Qg5 {[%emt 0:00:50] Weighted Error Value: White=0.65/Black=0.41} 0-1